[Event "Reykjavik Open 2025"]
[Site "Reykjavik, Iceland"]
[Date "2025.04.14"]
[Round "8.1"]
[White "Maghsoodloo, Parham"]
[Black "Royal, Shreyas"]
[Result "1-0"]
[WhiteElo "2684"]
[WhiteTitle "GM"]
[WhiteFideId "12539929"]
[BlackElo "2465"]
[BlackTitle "GM"]
[BlackFideId "448869"]
[TimeControl "90+30 +30 after 40 moves"]
[Variant "Standard"]
[ECO "A33"]
[Opening "English Opening: Symmetrical Variation, Anti-Benoni Variation, Geller Variation"]
[StudyName "Round 8"]
1. c4 { [%clk 1:30:59] } 1... c5 { [%clk 1:30:54] } 2. Nc3 { [%clk 1:29:41] } 2... Nf6 { [%clk 1:31:19] } 3. Nf3 { [%clk 1:28:22] } 3... Nc6 { [%clk 1:31:36] } 4. d4 { [%clk 1:28:11] } 4... cxd4 { [%clk 1:31:51] } 5. Nxd4 { [%clk 1:28:36] } 5... e6 { [%clk 1:32:17] } 6. g3 { [%clk 1:27:40] } 6... Qb6 { [%clk 1:32:03] } 7. Nb3 { [%clk 1:26:52] } 7... Ne5 { [%clk 1:30:07] } 8. e4 { [%clk 1:25:39] } 8... Bb4 { [%clk 1:30:30] } 9. Qe2 { [%clk 1:23:00] } 9... Bxc3+ { [%clk 1:29:42] } 10. bxc3 { [%clk 1:23:17] } 10... d6 { [%clk 1:29:49] } 11. f4 { [%clk 1:15:42] } 11... Nc6 { [%clk 1:30:10] } 12. Ba3 { [%clk 1:13:25] } 12... e5 { [%clk 1:27:06] } 13. Bxd6 { [%clk 1:02:15] } 13... Bg4 { [%clk 1:24:29] } 14. Qd3 { [%clk 1:06:06] } 14... a5 { [%clk 1:24:51] } 15. c5 { [%clk 1:02:11] } 15... Qa7 { [%clk 1:25:06] } 16. f5 { [%clk 1:00:16] } 16... a4 { [%clk 1:21:31] } 17. Nd2 { [%clk 0:58:14] } 17... Nd7 { [%clk 1:21:54] } 18. h3 { [%clk 0:57:31] } 18... Nxc5 { [%clk 1:22:11] } 19. Qe3 { [%clk 0:55:07] } 1-0

[Event "Reykjavik Open 2025"]
[Site "Reykjavik, Iceland"]
[Date "2025.04.14"]
[Round "8.2"]
[White "Muradli, Mahammad"]
[Black "Ivanchuk, Vasyl"]
[Result "1/2-1/2"]
[WhiteElo "2588"]
[WhiteTitle "GM"]
[WhiteFideId "13409301"]
[BlackElo "2604"]
[BlackTitle "GM"]
[BlackFideId "14100010"]
[TimeControl "90+30 +30 after 40 moves"]
[Variant "Standard"]
[ECO "D38"]
[Opening "Queen's Gambit Declined: Ragozin Defense, Alekhine Variation"]
[StudyName "Round 8"]
1. d4 { [%clk 1:30:00] } 1... Nf6 { [%clk 1:30:52] } 2. c4 { [%clk 1:30:18] } 2... e6 { [%clk 1:31:17] } 3. Nf3 { [%clk 1:30:38] } 3... d5 { [%clk 1:31:38] } 4. Nc3 { [%clk 1:30:56] } 4... Bb4 { [%clk 1:32:02] } 5. Qa4+ { [%clk 1:23:19] } 5... Nc6 { [%clk 1:31:56] } 6. a3 { [%clk 1:23:21] } 6... Bxc3+ { [%clk 1:30:21] } 7. bxc3 { [%clk 1:23:42] } 7... Bd7 { [%clk 1:30:35] } 8. cxd5 { [%clk 1:20:09] } 8... exd5 { [%clk 1:30:47] } 9. Bg5 { [%clk 1:19:57] } 9... h6 { [%clk 1:30:33] } 10. Bxf6 { [%clk 1:14:39] } 10... Qxf6 { [%clk 1:30:27] } 11. e3 { [%clk 1:14:48] } 11... O-O { [%clk 1:19:20] } 12. Bd3 { [%clk 1:14:15] } 12... Bg4 { [%clk 0:49:48] } 13. Nd2 { [%clk 1:12:15] } 13... Bf5 { [%clk 0:45:04] } 14. Be2 { [%clk 1:07:06] } 14... a6 { [%clk 0:36:41] } 15. Qb3 { [%clk 1:02:15] } 15... Qd6 { [%clk 0:33:56] } 16. O-O { [%clk 0:56:45] } 16... b5 { [%clk 0:29:32] } 17. a4 { [%clk 0:52:19] } 17... Na5 { [%clk 0:29:53] } 18. Qb4 { [%clk 0:51:23] } 18... Nc4 { [%clk 0:29:29] } 19. Qxd6 { [%clk 0:37:04] } 19... cxd6 { [%clk 0:28:30] } 20. Ra2 { [%clk 0:37:24] } 20... Nxd2 { [%clk 0:15:55] } 21. Rxd2 { [%clk 0:37:51] } 21... bxa4 { [%clk 0:16:20] } 22. Ra2 { [%clk 0:35:05] } 22... Rfb8 { [%clk 0:09:30] } 23. Rxa4 { [%clk 0:27:46] } 23... Rb2 { [%clk 0:06:18] } 24. Bf3 { [%clk 0:21:26] } 24... Rc8 { [%clk 0:04:12] } 25. Ra3 { [%clk 0:10:34] } 25... Bd3 { [%clk 0:04:16] } 26. Rc1 { [%clk 0:10:58] } 26... Bc4 { [%clk 0:03:55] } 27. g4 { [%clk 0:09:23] } 27... Rc6 { [%clk 0:02:40] } 28. Ra5 { [%clk 0:07:25] } 28... Rb5 { [%clk 0:03:09] } 29. Rxb5 { [%clk 0:07:02] } 29... axb5 { [%clk 0:03:37] } 30. Ra1 { [%clk 0:07:21] } 30... Kf8 { [%clk 0:03:14] } 31. Ra7 { [%clk 0:03:43] } 31... Bb3 { [%clk 0:03:09] } 32. Ra5 { [%clk 0:01:59] } 32... Bc4 { [%clk 0:01:49] } 33. h4 { [%clk 0:01:17] } 33... g5 { [%clk 0:02:18] } 34. h5 { [%clk 0:01:11] } 34... Ke7 { [%clk 0:02:34] } 35. Kg2 { [%clk 0:00:58] } 35... Rc8 { [%clk 0:00:48] } 36. Kg3 { [%clk 0:01:11] } 36... Ke6 { [%clk 0:01:16] } 37. Bg2 { [%clk 0:00:45] } 37... Bd3 { [%clk 0:01:35] } 38. Ra3 { [%clk 0:01:13] } 38... Rc4 { [%clk 0:01:21] } 39. f4 { [%clk 0:00:39] } 39... Ra4 { [%clk 0:01:39] } 40. f5+ { [%clk 0:30:00] } 40... Kf6 { [%clk 0:00:38] } 41. Rb3 { [%clk 0:27:46] } 41... Bc4 { [%clk 0:30:52] } 42. Rb1 { [%clk 0:23:40] } 42... Ra3 { [%clk 0:27:39] } 43. Bf1 { [%clk 0:21:36] } 43... Rxc3 { [%clk 0:25:38] } 44. Kf3 { [%clk 0:21:39] } 44... b4 { [%clk 0:17:40] } 45. Bxc4 { [%clk 0:22:00] } 45... Rxc4 { [%clk 0:18:09] } 46. Ra1 { [%clk 0:15:50] } 46... Rc7 { [%clk 0:07:40] } 47. Ke2 { [%clk 0:15:17] } 47... Ke7 { [%clk 0:07:01] } 48. Kd2 { [%clk 0:12:16] } 48... Kd7 { [%clk 0:03:43] } 49. Ra6 { [%clk 0:10:54] } 49... b3 { [%clk 0:01:25] } 50. Rb6 { [%clk 0:11:06] } 50... Rc2+ { [%clk 0:01:23] } 51. Kd3 { [%clk 0:11:34] } 51... Rb2 { [%clk 0:01:35] } 52. Kc3 { [%clk 0:03:22] } 52... Rg2 { [%clk 0:02:03] } 53. Rxb3 { [%clk 0:03:36] } 53... Rxg4 { [%clk 0:01:42] } 54. Rb7+ { [%clk 0:04:05] } 54... Ke8 { [%clk 0:02:10] } 55. f6 { [%clk 0:03:22] } 55... Re4 { [%clk 0:02:15] } 56. Kd3 { [%clk 0:03:50] } 56... Re6 { [%clk 0:02:00] } 57. Rb8+ { [%clk 0:04:15] } 57... Kd7 { [%clk 0:02:24] } 58. Rb7+ { [%clk 0:04:43] } 58... Ke8 { [%clk 0:02:49] } 1/2-1/2

[Event "Reykjavik Open 2025"]
[Site "Reykjavik, Iceland"]
[Date "2025.04.14"]
[Round "8.3"]
[White "Lu, Shanglei"]
[Black "Safarli, Eltaj"]
[Result "1-0"]
[WhiteElo "2618"]
[WhiteTitle "GM"]
[WhiteFideId "8603332"]
[BlackElo "2617"]
[BlackTitle "GM"]
[BlackFideId "13402129"]
[TimeControl "90+30 +30 after 40 moves"]
[Variant "Standard"]
[ECO "C54"]
[Opening "Italian Game: Classical Variation, Giuoco Pianissimo, with h6"]
[StudyName "Round 8"]
1. e4 { [%clk 1:30:56] } 1... e5 { [%clk 1:30:52] } 2. Nf3 { [%clk 1:31:21] } 2... Nc6 { [%clk 1:31:18] } 3. Bc4 { [%clk 1:31:32] } 3... Bc5 { [%clk 1:31:41] } 4. c3 { [%clk 1:31:55] } 4... Nf6 { [%clk 1:32:07] } 5. d3 { [%clk 1:32:19] } 5... h6 { [%clk 1:32:26] } 6. O-O { [%clk 1:32:18] } 6... d6 { [%clk 1:32:38] } 7. b4 { [%clk 1:32:43] } 7... Bb6 { [%clk 1:33:04] } 8. a4 { [%clk 1:33:08] } 8... a6 { [%clk 1:33:00] } 9. Re1 { [%clk 1:30:18] } 9... O-O { [%clk 1:33:14] } 10. Nbd2 { [%clk 1:29:38] } 10... Ne7 { [%clk 1:30:09] } 11. Qc2 { [%clk 1:21:44] } 11... Ng6 { [%clk 1:28:24] } 12. d4 { [%clk 1:20:28] } 12... Re8 { [%clk 1:24:48] } 13. Bb2 { [%clk 1:19:19] } 13... c6 { [%clk 1:23:48] } 14. Bd3 { [%clk 1:12:25] } 14... Bc7 { [%clk 1:19:01] } 15. h3 { [%clk 1:08:39] } 15... Nh7 { [%clk 1:13:22] } 16. Bf1 { [%clk 1:02:57] } 16... Ng5 { [%clk 1:12:59] } 17. c4 { [%clk 1:03:06] } 17... a5 { [%clk 1:10:06] } 18. b5 { [%clk 0:56:44] } 18... c5 { [%clk 1:09:30] } 19. dxc5 { [%clk 0:51:58] } 19... dxc5 { [%clk 1:09:55] } 20. Nxg5 { [%clk 0:52:24] } 20... Qxg5 { [%clk 1:09:24] } 21. Ra3 { [%clk 0:52:38] } 21... Nf4 { [%clk 1:08:44] } 22. Rg3 { [%clk 0:52:29] } 22... Qh5 { [%clk 1:00:03] } 23. Nb1 { [%clk 0:50:46] } 23... Ne6 { [%clk 0:58:55] } 24. Nc3 { [%clk 0:46:21] } 24... Nd4 { [%clk 0:59:19] } 25. Qc1 { [%clk 0:46:29] } 25... Be6 { [%clk 0:56:24] } 26. Nd5 { [%clk 0:46:17] } 26... Bd8 { [%clk 0:56:36] } 27. Bxd4 { [%clk 0:40:22] } 27... cxd4 { [%clk 0:48:37] } 28. c5 { [%clk 0:39:45] } 28... Bxd5 { [%clk 0:41:16] } 29. Be2 { [%clk 0:37:19] } 29... Qh4 { [%clk 0:40:13] } 30. exd5 { [%clk 0:36:22] } 30... Bg5 { [%clk 0:35:46] } 31. Qc4 { [%clk 0:29:54] } 31... Bf4 { [%clk 0:33:53] } 32. Rg4 { [%clk 0:19:07] } 32... Qf6 { [%clk 0:26:24] } 33. d6 { [%clk 0:19:25] } 33... Rad8 { [%clk 0:25:24] } 34. Bf3 { [%clk 0:16:35] } 34... d3 { [%clk 0:10:04] } 35. Qxd3 { [%clk 0:14:08] } 35... e4 { [%clk 0:09:32] } 36. Bxe4 { [%clk 0:13:52] } 36... h5 { [%clk 0:09:51] } 37. Rxf4 { [%clk 0:13:47] } 37... Qxf4 { [%clk 0:10:19] } 38. Qd5 { [%clk 0:06:00] } 38... h4 { [%clk 0:03:13] } 39. Qxb7 { [%clk 0:04:59] } 39... Qg5 { [%clk 0:02:47] } 40. d7 { [%clk 0:03:26] } 40... Re7 { [%clk 0:00:33] } 41. c6 { [%clk 0:03:43] } 41... Qd2 { [%clk 0:00:31] } 42. Rf1 { [%clk 0:03:55] } 1-0

[Event "Reykjavik Open 2025"]
[Site "Reykjavik, Iceland"]
[Date "2025.04.14"]
[Round "8.4"]
[White "Banusz, Tamas"]
[Black "Sivuk, Vitaly"]
[Result "1/2-1/2"]
[WhiteElo "2592"]
[WhiteTitle "GM"]
[WhiteFideId "722413"]
[BlackElo "2505"]
[BlackTitle "GM"]
[BlackFideId "14116502"]
[TimeControl "90+30 +30 after 40 moves"]
[Variant "Standard"]
[ECO "A05"]
[Opening "King's Indian Attack"]
[StudyName "Round 8"]
1. Nf3 { [%clk 1:30:57] } 1... Nf6 { [%clk 1:27:28] } 2. g3 { [%clk 1:31:20] } 2... d5 { [%clk 1:27:38] } 3. Bg2 { [%clk 1:31:39] } 3... c5 { [%clk 1:27:56] } 4. O-O { [%clk 1:31:54] } 4... g6 { [%clk 1:28:16] } 5. c4 { [%clk 1:32:04] } 5... Bg7 { [%clk 1:28:30] } 6. Qa4+ { [%clk 1:32:16] } 6... Qd7 { [%clk 1:18:01] } 7. Qxd7+ { [%clk 1:32:23] } 7... Nbxd7 { [%clk 1:15:37] } 8. cxd5 { [%clk 1:32:43] } 8... Nxd5 { [%clk 1:16:00] } 9. Nc3 { [%clk 1:33:00] } 9... e6 { [%clk 1:14:31] } 10. d4 { [%clk 1:27:22] } 10... b6 { [%clk 1:08:39] } 11. Nxd5 { [%clk 1:15:54] } 11... exd5 { [%clk 1:09:02] } 12. Rd1 { [%clk 1:13:52] } 12... Bb7 { [%clk 1:09:08] } 13. Be3 { [%clk 1:08:37] } 13... c4 { [%clk 0:57:48] } 14. Nd2 { [%clk 1:05:52] } 14... b5 { [%clk 0:53:21] } 15. a4 { [%clk 1:05:02] } 15... a6 { [%clk 0:53:34] } 16. axb5 { [%clk 1:04:00] } 16... axb5 { [%clk 0:53:59] } 17. Rxa8+ { [%clk 1:04:27] } 17... Bxa8 { [%clk 0:54:19] } 18. Ra1 { [%clk 1:04:36] } 18... O-O { [%clk 0:44:30] } 19. Ra5 { [%clk 1:03:32] } 19... Bc6 { [%clk 0:39:56] } 20. Nb1 { [%clk 1:01:26] } 20... Nb6 { [%clk 0:24:31] } 21. Nc3 { [%clk 0:59:39] } 21... b4 { [%clk 0:22:15] } 22. Nxd5 { [%clk 0:59:14] } 22... Bxd5 { [%clk 0:22:17] } 23. Bxd5 { [%clk 0:59:40] } 23... Rd8 { [%clk 0:22:28] } 24. Be4 { [%clk 0:58:24] } 24... Bxd4 { [%clk 0:22:11] } 25. Rb5 { [%clk 0:55:13] } 25... Bxe3 { [%clk 0:10:16] } 26. fxe3 { [%clk 0:55:23] } 26... Rd1+ { [%clk 0:10:13] } 27. Kf2 { [%clk 0:52:43] } 27... Nd7 { [%clk 0:10:38] } 28. Rxb4 { [%clk 0:52:21] } 28... Nf6 { [%clk 0:09:05] } 29. Bf3 { [%clk 0:48:54] } 29... Rc1 { [%clk 0:09:24] } 30. Rb6 { [%clk 0:38:21] } 30... Kg7 { [%clk 0:09:20] } 31. Rb7 { [%clk 0:28:39] } 31... c3 { [%clk 0:09:20] } 32. bxc3 { [%clk 0:29:04] } 32... Rxc3 { [%clk 0:09:45] } 33. h3 { [%clk 0:28:25] } 33... Rc4 { [%clk 0:08:42] } 34. g4 { [%clk 0:28:38] } 34... h6 { [%clk 0:08:19] } 35. Ra7 { [%clk 0:28:45] } 35... Ne4+ { [%clk 0:06:59] } 36. Bxe4 { [%clk 0:28:51] } 36... Rxe4 { [%clk 0:07:23] } 37. Kf3 { [%clk 0:28:54] } 37... Rb4 { [%clk 0:07:38] } 38. Ra5 { [%clk 0:28:58] } 38... g5 { [%clk 0:07:28] } 39. h4 { [%clk 0:23:15] } 39... gxh4 { [%clk 0:07:50] } 40. Rh5 { [%clk 0:23:42] } 40... Kg6 { [%clk 0:07:14] } 41. Rxh4 { [%clk 0:24:00] } 41... Rb1 { [%clk 0:07:31] } 42. Rh5 { [%clk 0:22:36] } 42... Rf1+ { [%clk 0:05:18] } 43. Kg2 { [%clk 0:22:59] } 43... Re1 { [%clk 0:05:14] } 44. Kf2 { [%clk 0:23:26] } 44... Ra1 { [%clk 0:05:38] } 45. Rb5 { [%clk 0:23:50] } 45... Rh1 { [%clk 0:05:48] } 46. e4 { [%clk 0:23:18] } 46... Rh3 { [%clk 0:06:01] } 47. e5 { [%clk 0:22:20] } 47... h5 { [%clk 0:04:41] } 48. gxh5+ { [%clk 0:17:48] } 48... Rxh5 { [%clk 0:05:05] } 49. Kf3 { [%clk 0:18:13] } 49... Rh4 { [%clk 0:05:18] } 50. e4 { [%clk 0:18:32] } 50... Kg7 { [%clk 0:05:20] } 1/2-1/2

[Event "Reykjavik Open 2025"]
[Site "Reykjavik, Iceland"]
[Date "2025.04.14"]
[Round "8.5"]
[White "Gupta, Abhijeet"]
[Black "Prraneeth Vuppala"]
[Result "1-0"]
[WhiteElo "2576"]
[WhiteTitle "GM"]
[WhiteFideId "5010608"]
[BlackElo "2433"]
[BlackTitle "GM"]
[BlackFideId "46622373"]
[TimeControl "90+30 +30 after 40 moves"]
[Variant "Standard"]
[ECO "D37"]
[Opening "Queen's Gambit Declined: Three Knights Variation"]
[StudyName "Round 8"]
1. d4 { [%clk 1:30:56] } 1... d5 { [%clk 1:30:40] } 2. c4 { [%clk 1:31:14] } 2... e6 { [%clk 1:30:58] } 3. Nc3 { [%clk 1:31:22] } 3... Nf6 { [%clk 1:30:54] } 4. Nf3 { [%clk 1:31:34] } 4... h6 { [%clk 1:30:39] } 5. Bf4 { [%clk 1:31:25] } 5... Bb4 { [%clk 1:28:10] } 6. e3 { [%clk 1:23:20] } 6... O-O { [%clk 1:22:26] } 7. Qc2 { [%clk 1:19:09] } 7... c5 { [%clk 1:19:42] } 8. a3 { [%clk 1:16:20] } 8... Bxc3+ { [%clk 1:19:29] } 9. bxc3 { [%clk 1:16:46] } 9... Nc6 { [%clk 1:14:34] } 10. Be2 { [%clk 1:14:22] } 10... Re8 { [%clk 1:05:31] } 11. O-O { [%clk 1:13:52] } 11... Qa5 { [%clk 1:01:16] } 12. Rfc1 { [%clk 1:09:35] } 12... Nd7 { [%clk 0:54:27] } 13. Bg3 { [%clk 1:08:20] } 13... Nb6 { [%clk 0:53:03] } 14. Nd2 { [%clk 1:07:52] } 14... dxc4 { [%clk 0:46:32] } 15. Bc7 { [%clk 1:03:49] } 15... Qa4 { [%clk 0:42:16] } 16. Bxb6 { [%clk 1:01:53] } 16... Qxc2 { [%clk 0:37:51] } 17. Rxc2 { [%clk 1:02:19] } 17... axb6 { [%clk 0:38:17] } 18. Nxc4 { [%clk 1:02:43] } 18... cxd4 { [%clk 0:37:41] } 19. cxd4 { [%clk 1:03:02] } 19... b5 { [%clk 0:33:49] } 20. Nb6 { [%clk 1:02:05] } 20... Ra6 { [%clk 0:31:21] } 21. Nxc8 { [%clk 1:00:55] } 21... Rxc8 { [%clk 0:31:48] } 22. Bxb5 { [%clk 1:01:17] } 22... Ra5 { [%clk 0:32:08] } 23. a4 { [%clk 1:00:09] } 23... Na7 { [%clk 0:29:24] } 24. Rxc8+ { [%clk 0:51:05] } 24... Nxc8 { [%clk 0:29:13] } 25. Rb1 { [%clk 0:48:31] } 25... Nd6 { [%clk 0:27:22] } 26. g4 { [%clk 0:47:40] } 26... Nxb5 { [%clk 0:25:27] } 27. axb5 { [%clk 0:48:06] } 27... b6 { [%clk 0:23:45] } 28. h4 { [%clk 0:47:36] } 28... Ra4 { [%clk 0:22:29] } 29. Kh2 { [%clk 0:45:16] } 29... e5 { [%clk 0:15:19] } 30. Rd1 { [%clk 0:43:31] } 30... Rb4 { [%clk 0:14:32] } 31. dxe5 { [%clk 0:43:28] } 31... Rxg4 { [%clk 0:07:45] } 32. Rd4 { [%clk 0:43:26] } 32... Rg6 { [%clk 0:06:48] } 33. f4 { [%clk 0:43:43] } 33... Re6 { [%clk 0:03:42] } 34. Rd8+ { [%clk 0:44:02] } 34... Kh7 { [%clk 0:04:11] } 35. Rd6 { [%clk 0:44:23] } 35... Re7 { [%clk 0:01:46] } 36. Rxb6 { [%clk 0:44:46] } 36... f6 { [%clk 0:02:06] } 37. e6 { [%clk 0:44:50] } 37... f5 { [%clk 0:01:29] } 38. h5 { [%clk 0:45:09] } 38... g5 { [%clk 0:00:40] } 39. Rd6 { [%clk 0:45:34] } 1-0

[Event "Reykjavik Open 2025"]
[Site "Reykjavik, Iceland"]
[Date "2025.04.14"]
[Round "8.6"]
[White "Draskovic, Luka"]
[Black "Amar, Elham"]
[Result "0-1"]
[WhiteElo "2488"]
[WhiteTitle "GM"]
[WhiteFideId "944335"]
[BlackElo "2546"]
[BlackTitle "GM"]
[BlackFideId "1533533"]
[TimeControl "90+30 +30 after 40 moves"]
[Variant "Standard"]
[ECO "A13"]
[Opening "English Opening: Agincourt Defense"]
[StudyName "Round 8"]
1. c4 { [%clk 1:30:56] } 1... e6 { [%clk 1:29:15] } 2. g3 { [%clk 1:30:46] } 2... d5 { [%clk 1:29:37] } 3. Bg2 { [%clk 1:30:44] } 3... dxc4 { [%clk 1:27:32] } 4. Qa4+ { [%clk 1:26:38] } 4... Nd7 { [%clk 1:27:55] } 5. Qxc4 { [%clk 1:26:14] } 5... a6 { [%clk 1:27:15] } 6. Qc2 { [%clk 1:07:22] } 6... Ngf6 { [%clk 1:27:07] } 7. Nc3 { [%clk 1:04:27] } 7... Ra7 { [%clk 1:17:04] } 8. a4 { [%clk 0:56:53] } 8... b6 { [%clk 1:15:49] } 9. Nf3 { [%clk 0:56:13] } 9... Bb7 { [%clk 1:13:48] } 10. O-O { [%clk 0:55:18] } 10... c5 { [%clk 1:13:42] } 11. d3 { [%clk 0:50:14] } 11... Be7 { [%clk 1:12:47] } 12. e4 { [%clk 0:49:17] } 12... O-O { [%clk 1:12:52] } 13. h3 { [%clk 0:48:26] } 13... Nb8 { [%clk 1:04:15] } 14. Rd1 { [%clk 0:41:43] } 14... Nc6 { [%clk 1:04:35] } 15. Be3 { [%clk 0:41:39] } 15... e5 { [%clk 1:02:39] } 16. Qb3 { [%clk 0:34:58] } 16... Nd4 { [%clk 0:51:30] } 17. Qa2 { [%clk 0:28:41] } 17... Nc2 { [%clk 0:38:49] } 18. Rac1 { [%clk 0:29:05] } 18... Nxe3 { [%clk 0:39:12] } 19. fxe3 { [%clk 0:29:31] } 19... Bd6 { [%clk 0:39:00] } 20. Rf1 { [%clk 0:26:23] } 20... Ra8 { [%clk 0:34:35] } 21. Nh4 { [%clk 0:25:24] } 21... g6 { [%clk 0:33:09] } 22. Kh2 { [%clk 0:22:55] } 22... Bc8 { [%clk 0:30:05] } 23. Nf3 { [%clk 0:21:12] } 23... Be6 { [%clk 0:29:39] } 24. Qb1 { [%clk 0:21:25] } 24... Rb8 { [%clk 0:27:35] } 25. Nd2 { [%clk 0:19:11] } 25... h5 { [%clk 0:23:49] } 26. Kh1 { [%clk 0:15:52] } 26... Bc7 { [%clk 0:22:03] } 27. Rf2 { [%clk 0:12:47] } 27... b5 { [%clk 0:20:35] } 28. axb5 { [%clk 0:13:09] } 28... axb5 { [%clk 0:21:03] } 29. Rcf1 { [%clk 0:11:46] } 29... b4 { [%clk 0:20:21] } 30. Na4 { [%clk 0:10:45] } 30... Nd7 { [%clk 0:20:46] } 31. b3 { [%clk 0:10:58] } 31... Qg5 { [%clk 0:18:37] } 32. Rf3 { [%clk 0:10:23] } 32... Bd6 { [%clk 0:18:48] } 33. h4 { [%clk 0:07:34] } 33... Qh6 { [%clk 0:17:34] } 34. Qe1 { [%clk 0:07:00] } 34... Be7 { [%clk 0:15:41] } 35. Kh2 { [%clk 0:06:03] } 35... g5 { [%clk 0:14:09] } 36. Nc4 { [%clk 0:02:39] } 36... Bg4 { [%clk 0:12:05] } 37. Rf5 { [%clk 0:01:28] } 37... Bxf5 { [%clk 0:12:28] } 38. hxg5 { [%clk 0:01:35] } 38... Bxg5 { [%clk 0:12:18] } 39. Rxf5 { [%clk 0:02:03] } 39... f6 { [%clk 0:03:19] } 40. Bh3 { [%clk 0:02:21] } 40... Rfd8 { [%clk 0:02:25] } 41. Rf3 { [%clk 0:01:48] } 41... Nf8 { [%clk 0:01:36] } 42. Qe2 { [%clk 0:27:14] } 42... h4 { [%clk 0:27:42] } 43. Nxc5 { [%clk 0:23:37] } 43... hxg3+ { [%clk 0:28:07] } 44. Rxg3 { [%clk 0:23:35] } 44... Rb5 { [%clk 0:28:06] } 45. Na4 { [%clk 0:22:24] } 45... Rb7 { [%clk 0:28:35] } 46. Nab6 { [%clk 0:20:22] } 46... Rg7 { [%clk 0:28:26] } 47. Nd5 { [%clk 0:20:18] } 47... Rdd7 { [%clk 0:23:03] } 48. Nd2 { [%clk 0:13:12] } 48... Bh4 { [%clk 0:20:43] } 49. Rg4 { [%clk 0:13:04] } 49... f5 { [%clk 0:19:57] } 50. Rxg7+ { [%clk 0:12:28] } 50... Rxg7 { [%clk 0:20:26] } 51. Nf1 { [%clk 0:11:13] } 51... f4 { [%clk 0:15:57] } 52. exf4 { [%clk 0:09:15] } 52... exf4 { [%clk 0:16:25] } 53. Qf3 { [%clk 0:05:56] } 53... Qg5 { [%clk 0:13:47] } 54. Bg2 { [%clk 0:05:53] } 54... Ne6 { [%clk 0:13:57] } 0-1

[Event "Reykjavik Open 2025"]
[Site "Reykjavik, Iceland"]
[Date "2025.04.14"]
[Round "8.7"]
[White "Kadric, Denis"]
[Black "Garifullina, Leya"]
[Result "1/2-1/2"]
[WhiteElo "2533"]
[WhiteTitle "GM"]
[WhiteFideId "14403803"]
[BlackElo "2459"]
[BlackTitle "IM"]
[BlackFideId "34127035"]
[TimeControl "90+30 +30 after 40 moves"]
[Variant "Standard"]
[ECO "B23"]
[Opening "Sicilian Defense: Closed"]
[StudyName "Round 8"]
1. e4 { [%clk 1:30:58] } 1... c5 { [%clk 1:30:52] } 2. Nc3 { [%clk 1:31:09] } 2... d6 { [%clk 1:31:18] } 3. Bb5+ { [%clk 1:29:54] } 3... Bd7 { [%clk 1:31:21] } 4. a4 { [%clk 1:30:19] } 4... Nc6 { [%clk 1:30:34] } 5. d3 { [%clk 1:29:27] } 5... a6 { [%clk 1:28:26] } 6. Bxc6 { [%clk 1:29:43] } 6... Bxc6 { [%clk 1:28:49] } 7. a5 { [%clk 1:30:11] } 7... e6 { [%clk 1:24:03] } 8. Nf3 { [%clk 1:24:09] } 8... Nf6 { [%clk 1:23:15] } 9. O-O { [%clk 1:24:33] } 9... Be7 { [%clk 1:23:28] } 10. Re1 { [%clk 1:12:28] } 10... O-O { [%clk 1:17:24] } 11. h3 { [%clk 1:12:06] } 11... Rc8 { [%clk 1:15:40] } 12. b3 { [%clk 0:52:46] } 12... e5 { [%clk 1:07:31] } 13. Bd2 { [%clk 0:40:12] } 13... Nd7 { [%clk 1:01:28] } 14. Nd5 { [%clk 0:40:39] } 14... f5 { [%clk 1:00:52] } 15. c4 { [%clk 0:41:03] } 15... Qe8 { [%clk 0:57:32] } 16. b4 { [%clk 0:36:47] } 16... Bd8 { [%clk 0:53:13] } 17. bxc5 { [%clk 0:33:11] } 17... fxe4 { [%clk 0:46:36] } 18. dxe4 { [%clk 0:33:40] } 18... Bxd5 { [%clk 0:46:53] } 19. exd5 { [%clk 0:18:30] } 19... Nxc5 { [%clk 0:46:34] } 20. Be3 { [%clk 0:18:59] } 20... Qg6 { [%clk 0:41:06] } 21. Qb1 { [%clk 0:16:23] } 21... Nd3 { [%clk 0:27:19] } 22. Rd1 { [%clk 0:16:50] } 22... e4 { [%clk 0:24:17] } 23. Nd2 { [%clk 0:17:17] } 23... Qf5 { [%clk 0:15:50] } 24. Nxe4 { [%clk 0:12:01] } 24... Qxe4 { [%clk 0:16:13] } 25. Rxd3 { [%clk 0:10:24] } 25... Rxc4 { [%clk 0:16:27] } 26. Rb3 { [%clk 0:10:47] } 26... Qxd5 { [%clk 0:13:02] } 27. Rxb7 { [%clk 0:11:14] } 27... Bf6 { [%clk 0:07:18] } 28. Ra3 { [%clk 0:11:10] } 28... Rfc8 { [%clk 0:07:08] } 29. Rb8 { [%clk 0:07:00] } 29... Be5 { [%clk 0:05:29] } 30. g3 { [%clk 0:05:55] } 30... Qe6 { [%clk 0:04:11] } 31. Kg2 { [%clk 0:03:47] } 31... d5 { [%clk 0:03:37] } 32. Rxc8+ { [%clk 0:04:13] } 32... Rxc8 { [%clk 0:04:01] } 33. Qb6 { [%clk 0:03:26] } 33... Rc6 { [%clk 0:04:04] } 34. Qd8+ { [%clk 0:02:19] } 34... Kf7 { [%clk 0:04:30] } 35. Bd2 { [%clk 0:02:20] } 35... Bf6 { [%clk 0:04:40] } 36. Qa8 { [%clk 0:01:35] } 36... Rc2 { [%clk 0:04:27] } 37. Re3 { [%clk 0:01:48] } 37... Qc6 { [%clk 0:03:13] } 38. Qxc6 { [%clk 0:01:47] } 38... Rxc6 { [%clk 0:03:39] } 39. Rb3 { [%clk 0:02:10] } 39... Ke6 { [%clk 0:03:27] } 40. Kf3 { [%clk 0:02:30] } 40... Bd8 { [%clk 0:03:01] } 1/2-1/2